Cogmind - Beta 15 @@@ ROGUE MODE // 2025.06.29 @ 21:36:22 Player: Theragus Result: Destroyed by S-10 Pest with Light Assault Rifle Performance ------------- Evolutions (2) 1000 Regions Visited (5) 1000 Robots Destroyed (32) 160 Value Destroyed (813) 813 Prototype IDs (0) 0 Alien Tech Used (0) 0 Bonus (0) 0 TOTAL SCORE: 2973 Bonus ------- None Cogmind --------- Core Integrity 0/550 Matter 15/300 Energy 98/100 System Corruption 0% Temperature Cool (0) Movement Core (750) Ox14 Location -8/Materials Parts ------- > --- POWER (2) -------- (None) > --- PROPULSION (3) --- (None) > --- UTILITY (3) ------ High-capacity Storage Unit > --- WEAPON (3) ------- Axe > --- INVENTORY (20) --- Cooling System Medium Matter Pod (59) Rocket Launcher Peak State ------------ > --- POWER ------------ Ion Engine > --- PROPULSION ------- Aluminum Leg Improved Aluminum Leg Titanium Leg > --- UTILITY ---------- High-capacity Storage Unit Sensor Array Reaction Control System > --- WEAPON ----------- Assault Rifle Missile Launcher Missile Launcher > --- INVENTORY -------- Light Nuclear Core Cooling System Medium Matter Pod EM Pulse Gun Grenade Launcher Improved Datajack [Rating: 20] Favorites ----------- Power Light Ion Engine Engine Light Ion Engine Power Core Light Nuclear Core Propulsion Aluminum Leg Leg Aluminum Leg Utility Small Storage Unit Device Sensor Array Storage Small Storage Unit Weapon EM Pulse Gun Energy Gun EM Pulse Gun Ballistic Gun Assault Rifle Launcher Missile Launcher Slashing Weapon Axe Special Melee Weapon Improved Datajack Build | -11 -10 -10 -9 -9 -8 ------- Run | Yrd Mat Min Mat Min Mat Slots Evolved 4 | . . . 2 . 2 Power 1 | . . . 1 . . Propulsion 1 | . . . . . 1 Utility 1 | . . . . . 1 Weapon 1 | . . . 1 . . Parts Attached 25 | 6 . . 4 2 13 Power 3 | 1 . . 1 . 1 Engine 2 | 1 . . 1 . . Core 1 | . . . . . 1 Reactor . | . . . . . . Propulsion 5 | 2 . . . 1 2 Treads . | . . . . . . Leg 5 | 2 . . . 1 2 Wheel . | . . . . . . Hover . | . . . . . . Flight . | . . . . . . Utility 5 | 1 . . 1 . 3 Device 3 | . . . 1 . 2 Storage 2 | 1 . . . . 1 Processor . | . . . . . . Hackware . | . . . . . . Protection . | . . . . . . Artifact . | . . . . . . Weapon 12 | 2 . . 2 1 7 Energy Gun 3 | 2 . . 1 . . Energy Cannon . | . . . . . . Ballistic Gun 3 | . . . 1 1 1 Ballistic Cannon . | . . . . . . Launcher 4 | . . . . . 4 Special Weapon . | . . . . . . Impact Weapon . | . . . . . . Slashing Weapon 1 | . . . . . 1 Piercing Weapon . | . . . . . . Special Melee Weapon 1 | . . . . . 1 Unidentified Prototypes . | . . . . . . Parts Lost 16 | . . . 1 1 14 Power 3 | . . . . . 3 Propulsion 5 | . . . 1 . 4 Utility 2 | . . . . . 2 Weapon 6 | . . . . 1 5 Highest Loss Streak 12 | . . . 1 1 12 To Critical Strikes . | . . . . . . Average Backups 5 | 1 2 4 6 7 6 Power . | . 1 1 . . . Propulsion . | . . 1 1 1 . Utility 1 | . . . 1 3 2 Weapon 2 | 1 1 2 2 2 2 Tool/Special . | . . . . . . Unused Backups 2 | . . . . . 2 Power . | . . . . . . Propulsion . | . . . . . . Utility 2 | . . . . . 2 Weapon . | . . . . . . Tool/Special . | . . . . . . Average Slot Usage (%) 86 | . 85 85 92 87 84 Engine 16 | . 14 14 22 22 13 Leg 21 | . 28 28 18 13 19 Device 10 | . . . 10 11 15 Storage 10 | . 14 14 11 11 9 Energy Gun 15 | . 28 28 25 17 2 Ballistic Gun 6 | . . . 5 13 9 Launcher 5 | . . . . . 12 Peak Build Rating 20 | 6 6 6 10 10 20 Average Rating 11 | 3 6 6 8 8 16 On Entrance 6 | . 6 6 6 9 10 Naked Turns . | . . . . . . Heaviest Build 64 | 12 12 12 20 20 64 Greatest Support 40 | 20 20 20 20 20 40 Greatest Overweight (x) 17 | . . . 1 1 17 Average Overweight (x) . | . . . . . 1 Largest Inventory Capacity 20 | 8 8 8 8 8 20 Average Capacity 10 | 5 8 8 8 8 14 Most Carried 8 | 5 4 5 8 8 8 Average Carried 5 | 2 2 4 6 7 6 Final Capacity 20 | 8 8 8 8 8 20 Final Carried 8 | 2 4 5 8 6 3 Class Distribution -------------------- 59% | Skirmisher 39% | Mutant Dominant Class ---------------- Mutant | -10/Materials Mutant | -10/Mines Skirmisher | -9/Materials Skirmisher | -9/Mines Skirmisher | -8/Materials Resources | -11 -10 -10 -9 -9 -8 ----------- Run | Yrd Mat Min Mat Min Mat Matter Collected 570 | 134 95 31 42 18 250 Remotely . | . . . . . . Salvage Created 785 | . 95 65 236 57 332 Parts 52 | . 4 7 12 2 27 Haulers Intercepted . | . . . . . . Recyclers Shooed 1 | . . . 1 . . Parts Field Recycled . | . . . . . . Retrieved Matter . | . . . . . . Parts Self-Destructed . | . . . . . . Prevented . | . . . . . . Kills | -11 -10 -10 -9 -9 -8 ------- Run | Yrd Mat Min Mat Min Mat Combat Hostiles Destroyed 21 | . 2 5 4 3 7 Guns 14 | . 2 3 4 3 2 AOE 7 | . . 2 . . 5 Classes Destroyed 9 | . 1 1 3 . 4 Worker 2 | . . . . . 2 Builder 3 | . . . . . 3 Tunneler 1 | . . . 1 . . Mechanic 1 | . . . . . 1 Watcher 4 | . . . 2 . 2 Swarmer 8 | . . 5 . 3 . Grunt 7 | . 2 . 3 . 2 Sentry 5 | . . . 1 . 4 Hunter 1 | . . . . . 1 Best Kill Streak 7 | . 2 3 3 3 7 Combat Bots Only 4 | . 2 3 3 3 4 Max Kills in Single Turn 3 | . 1 2 2 1 3 Gunslinging . | . . . . . . Exploded 2 | . . 2 . . 1 Melee . | . . . . . . Uniques/NPCs Destroyed . | . . . . . . Combat | -11 -10 -10 -9 -9 -8 -------- Run | Yrd Mat Min Mat Min Mat Hostile Shots Fired 185 | . 13 8 16 19 129 Missed 55 | . 5 3 3 6 38 Hits 130 | . 8 5 13 13 91 Projectile 130 | . 8 5 13 13 91 Critical Strikes 2 | . . . . . 2 Damage Taken 1929 | . 87 67 148 101 1526 Core 577 | . . 7 . 20 550 Absorbed by Shields . | . . . . . . Core Remaining (%) 97 | 100 . 97 . 95 . Volleys Fired 59 | . 9 5 13 10 22 Largest 3 | . 2 2 3 3 3 Hottest 130 | . 80 80 130 93 93 Shots Fired 140 | . 18 10 34 21 57 Gun 113 | . 18 10 34 21 30 Cannon . | . . . . . . Launcher 27 | . . . . . 27 Special . | . . . . . . Kinetic 41 | . . . 7 11 23 Thermal 30 | . . . 13 10 7 Explosive 27 | . . . . . 27 Electromagnetic 42 | . 18 10 14 . . Robot Hit Streak 11 | . 2 4 11 6 7 Robot Miss Streak 6 | . 1 2 4 3 6 Penetration Max . | . . . . . . Secondary Targets . | . . . . . . Shots Hit Robots 73 | . 10 6 21 11 25 Core Hits 61 | . 4 5 11 6 35 Critical Kills . | . . . . . . Critical Parts Destroyed . | . . . . . . Critical Strikes 1 | . . . 1 . . Corrupt 1 | . . . 1 . . Melee Attacks 1 | . . . . . 1 Impact . | . . . . . . Slashing 1 | . . . . . 1 Piercing . | . . . . . . Sneak Attacks . | . . . . . . Combat Hostiles . | . . . . . . Follow-up Attacks . | . . . . . . Damage Inflicted 2203 | . 140 160 319 121 1463 Guns 797 | . 140 69 310 121 157 Cannons . | . . . . . . Explosions 1392 | . . 91 . . 1301 Melee . | . . . . . . Ramming 14 | . . . 9 . 5 Kinetic 227 | . . . 37 59 131 Thermal 385 | . . 91 114 62 118 Explosive 1209 | . . . . . 1209 Electromagnetic 368 | . 140 69 159 . . Impact . | . . . . . . Slashing . | . . . . . . Piercing . | . . . . . . Highest Corruption . | . . . . . . Average Corruption . | . . . . . . Corruption Purged . | . . . . . . Corruption Blocked . | . . . . . . Overload Shots . | . . . . . . Overflow Damage 51 | . . 2 . . 49 Projectiles . | . . . . . . Explosions 51 | . . 2 . . 49 Melee . | . . . . . . Knockbacks . | . . . . . . Impact . | . . . . . . Kinetic . | . . . . . . Secondary . | . . . . . . Self-Inflicted Damage 159 | . . 31 . . 128 Shots 6 | . . 1 . . 5 Rammed . | . . . . . . Targets Rammed 4 | . . . 3 . 1 Kicked 4 | . . . 3 . 1 Crushed . | . . . . . . Highest Temperature 367 | . 150 54 367 148 90 Average Temperature 74 | . 85 29 115 94 23 Received Heat Transfer 582 | . 48 . 75 . 459 Effects 1 | . . . 1 . . Shutdowns 1 | . . . 1 . . Siege Activations . | . . . . . . Martial Activations . | . . . . . . Shielding Activations . | . . . . . . Robots Disrupted . | . . . . . . Combat Hostiles . | . . . . . . Robots Corrupted . | . . . . . . Combat Hostiles . | . . . . . . Parts Fried 2 | . . 1 1 . . Impact Corruptions . | . . . . . . Robots Melted . | . . . . . . Combat Hostiles . | . . . . . . Parts Melted 1 | . . 1 . . . Heat Transferred 892 | . . 100 333 185 274 Parts Sabotaged . | . . . . . . Parts Stolen . | . . . . . . Parts Stripped . | . . . . . . Power Chain Reactions 1 | . . 1 . . . Alert | -11 -10 -10 -9 -9 -8 ------- Run | Yrd Mat Min Mat Min Mat Maximum Alert Level . | . . . . . . Low Security (%) 100 | 100 100 100 100 100 100 Level 1 . | . . . . . . Level 2 . | . . . . . . Level 3 . | . . . . . . Level 4 . | . . . . . . Level 5 . | . . . . . . High Security . | . . . . . . Max Security . | . . . . . . Peak Influence 190 | . 40 118 60 50 190 Initial 19 | . . 11 14 . 19 Average 33 | . 9 67 11 15 40 Influence Increases 932 | . 50 167 124 74 517 Destroy 0b10 Robot/C 420 | . 40 100 80 60 140 Destroy 0b10 Robot/NC 55 | . . . 15 . 40 Destroy Leader 128 | . 10 20 24 10 64 Successful Hack 21 | . . . 5 4 12 Disable Machine 105 | . . 30 . . 75 Destroy Structure 143 | . . 2 . . 141 Lose Combat Pursuer 60 | . . 15 . . 45 Influence Decreases 788 | . 20 159 162 24 423 Entered New Map 74 | . . 19 24 . 31 Time Decay 574 | . 20 140 128 24 262 Lost Part 140 | . . . 10 . 130 Squads Dispatched 3 | . 1 . 1 . 1 Investigation 1 | . . . 1 . . Extermination . | . . . . . . Reinforcement 2 | . 1 . . . 1 Assault . | . . . . . . Garrison . | . . . . . . Intercept . | . . . . . . Searches Triggered . | . . . . . . Construction Impeded 1 | . . . . . 1 Haulers Reinforced . | . . . . . . Active Scanning Responses . | . . . . . . Cargo Convoy Interrupts . | . . . . . . Stealth | -11 -10 -10 -9 -9 -8 --------- Run | Yrd Mat Min Mat Min Mat Distress Signals 6 | . . . 2 . 4 Communications Jammed . | . . . . . . Distress Signals . | . . . . . . Times Spotted 39 | . 6 4 8 3 18 Peak Tracking Total 7 | . 3 3 4 3 7 Tactical Retreats 3 | . . 1 . . 2 Traps | -11 -10 -10 -9 -9 -8 ------- Run | Yrd Mat Min Mat Min Mat Traps Triggered 1 | . . . 1 . . Indirectly . | . . . . . . Trap Hack Attempts . | . . . . . . Triggered . | . . . . . . Disarmed . | . . . . . . Reprogrammed . | . . . . . . Reused . | . . . . . . Traps Extracted . | . . . . . . Installed . | . . . . . . Triggered . | . . . . . . Machines | -11 -10 -10 -9 -9 -8 ---------- Run | Yrd Mat Min Mat Min Mat Machines Disabled 7 | . . 2 . . 5 Max in Single Turn 3 | . . 1 . . 3 Machines Repaired . | . . . . . . Machines Dismantled . | . . . . . . Machines Sabotaged . | . . . . . . Overloaded Fab Kills . | . . . . . . Hacking | -11 -10 -10 -9 -9 -8 --------- Run | Yrd Mat Min Mat Min Mat Machines Accessed 5 | . 1 . 2 1 1 Terminals 3 | . . . 1 1 1 Fabricators . | . . . . . . Repair Stations . | . . . . . . Recycling Units 1 | . 1 . . . . Scanalyzers 1 | . . . 1 . . Garrison Access . | . . . . . . Total Hacks 17 | . 4 . 9 2 2 Successful 12 | . 1 . 7 2 2 Failed 5 | . 3 . 2 . . Catastrophic . | . . . . . . Database Lockouts . | . . . . . . Manual . | . . . . . . Terminals 11 | . . . 7 2 2 Fabricators . | . . . . . . Repair Stations . | . . . . . . Recycling Units 4 | . 4 . . . . Scanalyzers 2 | . . . 2 . . Garrison Access . | . . . . . . Terminal Hacks 9 | . . . 5 2 2 Record 2 | . . . . 1 1 Alert Level 2 | . . . 1 . 1 Dispatch Records 1 | . . . . 1 . Transport Status 1 | . . . 1 . . Reinforcement Status 1 | . . . 1 . . Hauler Manifests 1 | . . . 1 . . Zone Layout 1 | . . . 1 . . Fabricator Hacks . | . . . . . . Repair Station Hacks . | . . . . . . Recycling Unit Hacks 1 | . 1 . . . . Report Inventory 1 | . 1 . . . . Scanalyzer 2 | . . . 2 . . Insert Component 1 | . . . 1 . . Analyze 1 | . . . 1 . . Garrison Access Hacks . | . . . . . . Unauthorized Hacks . | . . . . . . Terminals . | . . . . . . Fabricators . | . . . . . . Repair Stations . | . . . . . . Recycling Units . | . . . . . . Scanalyzers . | . . . . . . Garrison Access . | . . . . . . Data Cores Recovered . | . . . . . . Used . | . . . . . . Hacking Detections 4 | . 1 . 1 1 1 Full Trace Events 1 | . . . 1 . . Feedback Events . | . . . . . . Feedback Blocked . | . . . . . . Robot Schematics Acquired . | . . . . . . Robots Built . | . . . . . . Authchips . | . . . . . . Time . | . . . . . . Total Robot Build Rating . | . . . . . . Part Schematics Acquired 1 | . . . 1 . . Parts Built . | . . . . . . Authchips . | . . . . . . Time . | . . . . . . Total Part Build Rating . | . . . . . . Parts Repaired . | . . . . . . Time . | . . . . . . Parts Recycled . | . . . . . . Recycled Matter . | . . . . . . Retrieved Matter . | . . . . . . Retrieved Components . | . . . . . . Parts Scanalyzed 1 | . . . 1 . . Part Schematics Acquired 1 | . . . 1 . . Parts Damaged . | . . . . . . Bothacking | -11 -10 -10 -9 -9 -8 ------------ Run | Yrd Mat Min Mat Min Mat Used RIF Installer . | . . . . . . Robots Hacked . | . . . . . . Non-combat . | . . . . . . Combat . | . . . . . . Robot Hacks Applied . | . . . . . . Relay Couplers Released . | . . . . . . Fabnet Peak Effective % . | . . . . . . Robots Rewired . | . . . . . . Allies Hacked . | . . . . . . Hacks Repelled . | . . . . . . Allies | -11 -10 -10 -9 -9 -8 -------- Run | Yrd Mat Min Mat Min Mat Total Allies . | . . . . . . Largest Group . | . . . . . . Highest-Rated Group . | . . . . . . Highest-Rated Ally . | . . . . . . Total Orders . | . . . . . . Ally Attacks . | . . . . . . Total Damage . | . . . . . . Kills . | . . . . . . Allies Corrupted . | . . . . . . Allies Melted . | . . . . . . Intel | -11 -10 -10 -9 -9 -8 ------- Run | Yrd Mat Min Mat Min Mat Active Infowar (turns) 1203 | . . . 394 98 711 Sensors 1203 | . . . 394 98 711 Robot Analysis Total . | . . . . . . Derelict Logs Recovered 1 | . . 1 . . . Drone Launches . | . . . . . . Drone Recoveries . | . . . . . . Exploration | -11 -10 -10 -9 -9 -8 ------------- Run | Yrd Mat Min Mat Min Mat Turns Passed 1817 | 72 125 298 426 98 798 Spaces Moved 942 | 67 77 205 200 39 354 Core 45 | 36 . . . . 9 Treads . | . . . . . . Legs 897 | 31 77 205 200 39 345 Wheels . | . . . . . . Hover . | . . . . . . Flight . | . . . . . . Fastest Speed 50 | 50 120 120 120 120 120 Average Speed 149 | 82 120 120 130 170 194 Slowest Speed 900 | 120 120 120 190 190 900 Overloaded Moves . | . . . . . . Propulsion Burnouts . | . . . . . . Robots Hopped . | . . . . . . Potential Cave-ins . | . . . . . . Cave-ins Triggered . | . . . . . . Exploration Rate (%) 23 | 4 14 61 16 12 31 Regions Visited 5 Branch Regions 2 Pre-discovered Areas 1 | . . 1 . . . Known Exits Taken . | . . . . . . Unknown Exits Taken 5 | 1 1 1 1 1 . Scrap Searched . | . . . . . . Spaces Dug . | . . . . . . Terrain Destroyed 187 | . . 2 . . 185 Melee . | . . . . . . Projectile . | . . . . . . AOE 187 | . . 2 . . 185 Terrain Rammed . | . . . . . . Walls Destroyed . | . . . . . . Machines Disabled . | . . . . . . Actions | -11 -10 -10 -9 -9 -8 --------- Run | Yrd Mat Min Mat Min Mat Total 1237 | 84 91 247 339 52 424 Wait 168 | 2 4 37 113 2 10 Move 937 | 66 76 204 199 38 354 Hop . | . . . . . . Pick Up 32 | 9 2 1 7 . 13 Fast Attach . | . . . . . . Attach 26 | 6 . . 4 2 14 Detach 3 | . . . . . 3 Swap . | . . . . . . Drop 7 | 1 . . . . 6 Fire 59 | . 9 5 13 10 22 Melee 1 | . . . . . 1 Ram . | . . . . . . Kick 4 | . . . 3 . 1 Crush . | . . . . . . Escape Stasis . | . . . . . . Rewire . | . . . . . . Trap . | . . . . . . Miscellaneous . | . . . . . . Route ------- -11/Scrapyard -10/Materials -10/Mines -9/Materials -9/Mines -8/Materials History --------- Turn | Location | Event 6 | -11/Scrapyard | Discovered new exit (range 16) 73 | -11/Scrapyard | Entered Materials 153 | -10/Materials | Discovered new exit (range 4) 198 | -10/Materials | Entered Mines 303 | -10/Mines | Build established: Mutant 307 | -10/Mines | Learned location of Storage (-7) 464 | -10/Mines | Discovered new exit (range 15) 496 | -10/Mines | Entered Materials 496 | -9/Materials | Evolved 2 slots: Power x1, Weapon x1 762 | -9/Materials | Discovered new exit (range 16) 922 | -9/Materials | Entered Mines 974 | -9/Mines | Discovered new exit (range 9) 1020 | -9/Mines | Entered Materials 1020 | -8/Materials | Evolved 2 slots: Propulsion x1, Utility x1 1299 | -8/Materials | Build established: Skirmisher 1768 | -8/Materials | Core integrity fell below 50% 1805 | -8/Materials | Core integrity fell below 20% 1818 | -8/Materials | Lost 12 parts (2p3n2u5w) 1818 | -8/Materials | Destroyed by S-10 Pest with Light Assault Rifle Last Messages --------------- 01754_ U-05 Engineer builds a Wall. 01758_ Dropped EM Pulse Gun. 01758_ Acquired 3 matter. 01759_ U-05 Engineer builds a Wall. 01761_ Grenade Launcher destroyed. 01763_ U-05 Engineer builds a Wall. 01767_ U-05 Engineer lays Concrete. 01768_ U-05 Engineer builds a Wall. 01772_ U-05 Engineer lays Concrete. 01774_ U-05 Engineer builds a Wall. 01775_ Critical hit (Burn: +37). 01778_ U-05 Engineer lays Concrete. 01780_ U-05 Engineer builds a Wall. 01783_ The unstable cave ceiling collapses. 01784_ U-05 Engineer lays Concrete. 01785_ Lgt. Nuclear Core destroyed. 01786_ U-05 Engineer builds a Wall. 01787_ Imp. Datajack destroyed. 01792_ The unstable cave ceiling collapses. 01805_ Acquired Axe. Map ----- +----------------------------------------------------+ | | | | | | | | | | | | | | | | | | | | | | | | | | | ?????????????????????????????#########???????????? | | ?????????????????????????????# #??????????? | | ?????????????????????????????# #??????????? | | ??????????????????????######?# #??????????? | | ?????????????????????? [ #?# #??????????? | | ????????????????????""" #?# #??????????? | | ??????????????????#""""" #?# #??????????? | | ??????????????????#""""" ### #??????????? | | ??????????????????#""""" !s/ # #########??? | | ??????????????????# """ s#?# ## #??? | | ??????????????????# #######+##### #??? | | ??????????????????# # # + #??? | | ??????????????????# s@ # # # #??? | | ??????????????????#####;#### + # #??? | | ????????????????????# ## # # #??? | | ???????????????###??# ## # ##+######## | | ??????????????## # ! ####### + | | ??????????????# # # [ "##??## ^# """ | | ???????? # ## !# #??# # """ | | ???????? = ## ######## # """ | | ?????????# ## # # + | | ????????" % =# # ###### # """ | | ????????? = #!### #??# # """ | | ????????? #%# ?### ######## # """ | | ?????????? !#=# #?# #??????# # | | ?????????? # #?# #??????# ###### | | ?????????? + #?# #?######+###### | | ??????????? # # ### ### | | ??????????? % ## ######## # """ """ " | | ???????????? =[% ^ # """ """ | | ???????????? ^ + """ """ | | ????????????? # | | ??????????????? ##?##?####### # ] | | ????????????????? #????????????## ########### | | ??????????????????????########### # #?#### | | ??????????????????????# # # """ #???## | | ??????????????????????# + + """ #????? | +----------------------------------------------------+ Best States ------------- Heat Dissipation 53 Energy Generation 15 Energy Capacity 275 Matter Stores 300 Matter Capacity 300 Sight Range 16 Robot Scan Range 14 Terrain Scan Density 10 Evasion (%) 63 Item Schematics ----------------- Imp. Aluminum Leg | -9/Materials | Scanalyzed Robot Schematics ------------------ None Fabricated ------------ Nothing Repaired ---------- Nothing Alien Tech Used ----------------- None Achievements -------------- Oops Challenges ------------ None Game ------ Seed XenonSupercompositeCarapace Manual? 0 Play Time 00:16:40 Cumulative 10.2 hours Start 2025.06.29 @ 21:20:00 End 2025.06.29 @ 21:36:22 Sessions 1 Manual Loads 0 Difficulty Rogue Special Mode None Game No. 14 Rogue 10 Adventurer 4 Explorer 0 Win Type - Total 0 Types 0/0/0/0/0/0/0/0/0/0 Lore% 3 Gallery% 11 Achievement% 14 Wizard Run 0 Options --------- Layout 0 ASCII 0 Keyboard 0 Movement Numpad Keybinds 0 Fullscreen 2 Font 24/Smallcaps Map View 56x25 Zoom Use 99% Tactical HUD 1 Map Filters NONE Filters NONE Steam 1 RUN: f241dcb9-dd70-493f-b898-4662ad221795